fUSD/lending_fUSD_20250809
["ID","MTS","AMOUNT","RATE_DAILY","PERIOD"]
[378107798,1754733089922,-467.01,0.00024657,2]
[378107799,1754733089933,-400.0,0.00024657,2]
[378107800,1754733089943,-400.0,0.00024657,2]
[378107801,1754733089953,-400.0,0.00024657,2]
[378107802,1754733089962,-400.0,0.00024657,2]
[378107803,1754733089971,-400.0,0.00024657,2]
[378107804,1754733089980,-466.7,0.00024657,2]
[378107805,1754733089989,-400.0,0.00024657,2]
[378107806,1754733089998,-400.0,0.00024657,2]
[378107807,1754733090007,-400.0,0.00024657,2]
[378107808,1754733090017,-442.37,0.00024657,2]
[378107809,1754733090026,-400.0,0.00024657,2]
[378107810,1754733090036,-400.0,0.00024657,2]
[378107811,1754733090047,-400.0,0.00024657,2]
[378107812,1754733090057,-404.63957494,0.00024657,2]
[378107813,1754733090066,-400.0,0.00024657,2]
[378107814,1754733090076,-400.0,0.00024657,2]
[378107815,1754733090085,-2334.9,0.00024657,2]
[378107816,1754733090094,-1000.0,0.00024657,2]
[378107817,1754733090103,-400.0,0.00024657,2]
[378107818,1754733090112,-400.0,0.00024657,2]
[378107819,1754733090122,-400.0,0.00024657,2]
[378107820,1754733090131,-400.0,0.00024657,2]
[378107821,1754733090140,-400.0,0.00024657,2]
[378107822,1754733090149,-478.33,0.00024657,2]
[378107823,1754733090159,-893.55,0.00024657,2]
[378107824,1754733090170,-400.0,0.00024657,2]
[378107825,1754733090179,-400.0,0.00024657,2]
[378107826,1754733090188,-400.0,0.00024657,2]
[378107827,1754733090198,-400.0,0.00024657,2]
[378107828,1754733090208,-400.0,0.00024657,2]
[378107829,1754733090219,-400.0,0.00024657,2]
[378107830,1754733090228,-400.0,0.00024657,2]
[378107831,1754733090238,-400.0,0.00024657,2]
[378107832,1754733090247,-400.0,0.00024657,2]
[378107833,1754733090256,-402.12069971,0.00024657,2]
[378107834,1754733090265,-400.0,0.00024657,2]
[378107835,1754733090275,-400.0,0.00024657,2]
[378107836,1754733090284,-400.0,0.00024657,2]
[378107837,1754733090293,-400.0,0.00024657,2]
[378107838,1754733090302,-400.0,0.00024657,2]
[378107839,1754733090313,-400.0,0.00024657,2]
[378107840,1754733090323,-705.02,0.00024657,2]
[378107841,1754733090332,-400.0,0.00024657,2]
[378107842,1754733090342,-573.02,0.00024657,2]
[378107843,1754733090351,-1167.81,0.00024657,2]
[378107844,1754733090360,-469.88,0.00024657,2]
[378107845,1754733090369,-400.0,0.00024657,2]
[378107846,1754733090382,-400.0,0.00024657,2]
[378107847,1754733090392,-403.57128984,0.00024657,2]
[378107848,1754733090403,-932.52,0.00024657,2]
[378107849,1754733090414,-1000.0,0.00024657,2]
[378107850,1754733090424,-1115.09,0.00024657,2]
[378107851,1754733090433,-513.08,0.00024657,2]
[378107852,1754733090443,-402.79102138,0.00024657,2]
[378107853,1754733090453,-400.0,0.00024657,2]
[378107854,1754733090462,-400.0,0.00024657,2]
[378107855,1754733090471,-400.0,0.00024657,2]
[378107856,1754733090480,-400.0,0.00024657,2]
[378107857,1754733090489,-400.0,0.00024657,2]
[378107858,1754733090499,-400.0,0.00024657,2]
[378107859,1754733090508,-489.07296117,0.00024657,2]
[378107860,1754733090517,-403.43551838,0.00024657,2]
[378107861,1754733090527,-1063.98,0.00024657,2]
[378107862,1754733090537,-752.34,0.00024657,2]
[378107863,1754733090547,-400.0,0.00024657,2]
[378107864,1754733090557,-400.0,0.00024657,2]
[378107865,1754733090566,-400.0,0.00024657,2]
[378107866,1754733090575,-400.0,0.00024657,2]
[378107867,1754733090585,-400.0,0.00024657,2]
[378107868,1754733090594,-1564.36,0.00024657,2]
[378107869,1754733090605,-572.4,0.00024657,2]
[378107870,1754733090615,-400.0,0.00024657,2]
[378107871,1754733090624,-400.0,0.00024657,2]
[378107872,1754733090633,-400.0,0.00024657,2]
[378107873,1754733090643,-1000.0,0.00024657,2]
[378107874,1754733090652,-2428.11,0.00024657,2]
[378107875,1754733090661,-500.0,0.00024657,2]
[378107876,1754733090671,-500.0,0.00024657,2]
[378107877,1754733090680,-540.24,0.00024657,2]
[378107878,1754733090871,-400.0,0.00024657,2]
[378107879,1754733090881,-400.0,0.00024657,2]
[378107880,1754733090891,-500.0,0.00024657,2]
[378107881,1754733090900,-500.0,0.00024657,2]
[378107882,1754733090909,-500.0,0.00024657,2]
[378107883,1754733090918,-403.38878789,0.00024657,2]
[378107884,1754733090928,-400.0,0.00024657,2]
[378107885,1754733090938,-400.0,0.00024657,2]
[378107886,1754733090947,-400.0,0.00024657,2]
[378107887,1754733090957,-400.0,0.00024657,2]
[378107888,1754733090966,-400.0,0.00024657,2]
[378107889,1754733090975,-603.34,0.00024657,2]
[378107890,1754733090984,-416.1,0.00024657,2]
[378107891,1754733090993,-400.0,0.00024657,2]
[378107892,1754733091002,-961.81,0.00024657,2]
[378107893,1754733091011,-184.42281027,0.00024657,2]
[378107894,1754733091021,-404.19515655,0.00024657,2]
[378107895,1754733091030,-400.0,0.00024657,2]
[378107896,1754733091039,-400.0,0.00024657,2]
[378107897,1754733091048,-655.5,0.00024657,2]
[378107898,1754733091058,-400.0,0.00024657,2]
[378107899,1754733091067,-400.0,0.00024657,2]
[378107900,1754733091076,-400.0,0.00024657,2]
[378107901,1754733091086,-400.0,0.00024657,2]
[378107902,1754733091095,-400.0,0.00024657,2]
[378107903,1754733091105,-403.02886476,0.00024657,2]
[378107904,1754733091117,-536.8,0.00024657,2]
[378107905,1754733091126,-400.0,0.00024657,2]
[378107906,1754733091136,-400.0,0.00024657,2]
[378107907,1754733091146,-400.0,0.00024657,2]
[378107908,1754733091156,-400.0,0.00024657,2]
[378107909,1754733091168,-400.0,0.00024657,2]
[378107910,1754733091178,-400.0,0.00024657,2]
[378107911,1754733091188,-447.99,0.00024657,2]
[378107912,1754733091198,-1261.27,0.00024657,2]
[378107913,1754733091209,-400.0,0.00024657,2]
[378107914,1754733091219,-400.0,0.00024657,2]
[378107915,1754733091229,-400.0,0.00024657,2]
[378107916,1754733091245,-400.0,0.00024657,2]
[378107917,1754733091254,-400.0,0.00024657,2]
[378107918,1754733091264,-400.0,0.00024657,2]
[378107919,1754733091274,-400.0,0.00024657,2]
[378107920,1754733091284,-400.0,0.00024657,2]
[378107921,1754733091293,-509.97,0.00024657,2]
[378107922,1754733091303,-400.0,0.00024657,2]
[378107923,1754733091313,-400.0,0.00024657,2]
[378107924,1754733091322,-402.32280806,0.00024657,2]
[378107925,1754733091332,-400.0,0.00024657,2]
[378107926,1754733091341,-400.0,0.00024657,2]
[378107927,1754733091351,-400.0,0.00024657,2]
[378107928,1754733091360,-400.0,0.00024657,2]
[378107929,1754733091370,-404.1363649,0.00024657,2]
[378107930,1754733091380,-400.0,0.00024657,2]
[378107931,1754733091390,-400.0,0.00024657,2]
[378107932,1754733091400,-1239.72,0.00024657,2]
[378107933,1754733091410,-400.0,0.00024657,2]
[378107934,1754733091420,-542.46,0.00024657,2]
[378107935,1754733091429,-400.0,0.00024657,2]
[378107936,1754733091438,-423.12,0.00024657,2]
[378107937,1754733091447,-400.0,0.00024657,2]
[378107938,1754733091457,-400.0,0.00024657,2]
[378107939,1754733091468,-400.0,0.00024657,2]
[378107940,1754733091482,-400.0,0.00024657,2]
[378107941,1754733091499,-739.24,0.00024657,2]
[378107942,1754733091510,-739.24,0.00024657,2]
[378107943,1754733091520,-739.24,0.00024657,2]
[378107944,1754733091530,-691.0,0.00024657,2]
[378107945,1754733091539,-400.0,0.00024657,2]
[378107946,1754733091549,-462.5,0.00024657,2]
[378107947,1754733091558,-400.0,0.00024657,2]
[378107948,1754733091567,-400.0,0.00024657,2]
[378107949,1754733091576,-739.24,0.00024657,2]
[378107950,1754733091586,-739.24,0.00024657,2]
[378107951,1754733091596,-739.24,0.00024657,2]
[378107952,1754733091606,-739.24,0.00024657,2]
[378107953,1754733091617,-739.24,0.00024657,2]
[378107954,1754733091627,-739.24,0.00024657,2]
[378107955,1754733091637,-739.24,0.00024657,2]
[378107956,1754733091647,-739.24,0.00024657,2]
[378107957,1754733091656,-739.24,0.00024657,2]
[378107958,1754733091666,-739.24,0.00024657,2]
[378107959,1754733091675,-739.24,0.00024657,2]
[378107960,1754733091685,-739.24,0.00024657,2]
[378107961,1754733091694,-400.0,0.00024657,2]
[378107962,1754733091704,-979.0,0.00024657,2]
[378107963,1754733091714,-404.07495627,0.00024657,2]
[378107964,1754733091723,-400.0,0.00024657,2]
[378107965,1754733091733,-400.0,0.00024657,2]
[378107966,1754733091742,-400.0,0.00024657,2]
[378107967,1754733091751,-400.0,0.00024657,2]
[378107968,1754733091764,-400.0,0.00024657,2]
[378107969,1754733091774,-400.0,0.00024657,2]
[378107970,1754733091783,-948.16,0.00024657,2]
[378107971,1754733091792,-701.1,0.00024657,2]
[378107972,1754733091803,-457.26,0.00024657,2]
[378107973,1754733091813,-400.0,0.00024657,2]
[378107974,1754733091822,-400.0,0.00024657,2]
[378107975,1754733091831,-686.47,0.00024657,2]
[378107976,1754733091841,-400.0,0.00024657,2]
[378107977,1754733091851,-400.0,0.00024657,2]
[378107978,1754733091860,-400.0,0.00024657,2]
[378107979,1754733091870,-400.0,0.00024657,2]
[378107980,1754733091879,-151.0,0.00024658,7]
[378107981,1754733091888,-151.0,0.00024658,7]
[378107982,1754733091897,-151.0,0.00024658,7]
[378107983,1754733091906,-151.0,0.00024658,7]
[378107984,1754733091915,-151.0,0.00024658,7]
[378107985,1754733091925,-151.0,0.00024658,7]
[378107986,1754733091934,-172.71721845,0.00024658,7]
[378107987,1754733091943,-168.60297248,0.00024658,30]
[378107988,1754733091952,-188.40676599,0.00024658,30]
[378107989,1754733091961,-500.0,0.00024658,2]
[378107990,1754733091970,-500.0,0.00024673,2]
[378107991,1754733091979,-4141.74,0.00024685,30]
[378107992,1754733091988,-4793.12,0.000247,2]
[378107993,1754733091998,-317.17183416,0.00024712,30]
[378107994,1754733092007,-245.57072,0.00024749,7]
[378107995,1754733092017,-1013.35415847,0.00024756,2]
[378107996,1754733092026,-514.0,0.00024756,2]
[378107997,1754733092036,-159.775808,0.00024773,2]
[378107998,1754733092046,-44191.4685333,0.00024783,2]
[378107999,1754733092056,-25865.3887637,0.00024783,2]
[378108000,1754733092065,-1025.03759758,0.0002479,2]
[378108001,1754733092075,-245.570726,0.00024799,7]
[378108002,1754733092084,-500.0,0.00024799,2]
[378108003,1754733092093,-500.0,0.00024799,2]
[378108004,1754733092103,-500.0,0.00024799,2]
[378108005,1754733092112,-552.86,0.00024799,2]
[378108006,1754733092123,-552.86,0.00024799,2]
[378108007,1754733092133,-552.86,0.00024799,2]
[378108008,1754733092143,-174.34,0.00024799,2]
[378108009,1754733092152,-500.0,0.00024799,2]
[378108010,1754733092162,-529.61630497,0.00024799,2]
[378108011,1754733092171,-724.79,0.00024799,2]
[378108012,1754733092181,-724.79,0.00024799,2]
[378108013,1754733092191,-724.79,0.00024799,2]
[378108014,1754733092200,-3688.23,0.00024799,2]
[378108015,1754733092209,-3688.23,0.00024799,2]
[378108016,1754733092219,-3688.23,0.00024799,2]
[378108017,1754733092228,-378.23118481,0.00024799,2]
[378108018,1754733092238,-582.98,0.00024799,2]
[378108019,1754733092248,-582.98,0.00024799,2]
[378108020,1754733092257,-582.98,0.00024799,2]
[378108021,1754733092267,-627.24,0.00024799,2]
[378108022,1754733092276,-627.24,0.00024799,2]
[378108023,1754733092285,-627.24,0.00024799,2]
[378108024,1754733092296,-500.0,0.00024799,2]
[378108025,1754733092305,-500.0,0.00024799,2]
[378108026,1754733092315,-500.0,0.00024799,2]
[378108027,1754733092325,-739.24,0.00024799,2]
[378108028,1754733092335,-739.24,0.00024799,2]
[378108029,1754733092344,-739.24,0.00024799,2]
[378108030,1754733092354,-501.21,0.000248,2]
[378108031,1754733092363,-182.02069468,0.000248,2]
[378108032,1754733092373,-1200.0,0.000248,9]
[378108033,1754733092383,-589369.45608797,0.000248,2]
[378108034,1754733092897,-6692.53326,0.000248,2]
[378108035,1754733092940,-622.15636844,0.000248,2]
[378108036,1754733098229,157.23,0.00013699,2]
[378108044,1754733622419,204.54406,0.000185,7]
[378108047,1754733729362,356.62,0.0001547,2]
[378108048,1754733729589,356.62,0.00017201,2]
[378108049,1754733761530,200.0,0.00018063,2]
[378108070,1754734157010,208.46,0.00013699,2]
[378108076,1754734223040,187.7,0.00016231,2]
[378108091,1754734232336,-356.62,0.00018931,2]
[378108092,1754734232349,-300.0,0.00019266,2]
[378108093,1754734232361,-200.0,0.00019701,2]
[378108094,1754734232373,-1200.0,0.00019701,2]
[378108095,1754734232386,-4662.51281194,0.00019702,2]
[378108096,1754734232399,-239.84119403,0.00019702,2]
[378108097,1754734232413,-304.54,0.0001971,2]
[378108098,1754734232425,-301.6,0.0001971,2]
[378108099,1754734232437,-301.97,0.0001971,2]
[378108100,1754734232449,-301.24,0.0001971,2]
[378108101,1754734232461,-301.11,0.0001971,2]
[378108102,1754734232473,-302.18,0.0001971,2]
[378108103,1754734232487,-305.52,0.00019711,2]
[378108104,1754734232499,-305.82,0.00019711,2]
[378108105,1754734232511,-303.3,0.00019711,2]
[378108106,1754734232523,-300.73,0.00019711,2]
[378108107,1754734232535,-303.99,0.00019711,2]
[378108108,1754734232546,-302.47,0.00019711,2]
[378108109,1754734232557,-304.56,0.00019711,2]
[378108110,1754734232568,-304.9,0.00019711,2]
[378108111,1754734232580,-305.44,0.00019711,2]
[378108112,1754734232592,-305.19,0.00019711,2]
[378108113,1754734232602,-305.1,0.00019712,2]
[378108114,1754734232614,-301.95,0.00019712,2]
[378108115,1754734232626,-305.08,0.00019712,2]
[378108116,1754734232637,-304.41,0.00019712,2]
[378108117,1754734232648,-300.13,0.00019712,2]
[378108118,1754734232661,-302.28,0.00019712,2]
[378108119,1754734232673,-304.68,0.00019712,2]
[378108120,1754734232684,-304.85,0.00019712,2]
[378108121,1754734232695,-302.49,0.00019712,2]
[378108122,1754734232706,-304.73,0.00019712,2]
[378108123,1754734232718,-300.5,0.00019713,2]
[378108124,1754734232730,-304.92,0.00019713,2]
[378108125,1754734232742,-300.2,0.00019713,2]
[378108126,1754734232754,-300.66,0.00019713,2]
[378108127,1754734232765,-305.2,0.00019713,2]
[378108128,1754734232777,-301.3,0.00019713,2]
[378108129,1754734232788,-302.49,0.00019713,2]
[378108130,1754734232800,-305.16,0.00019713,2]
[378108131,1754734232812,-304.07,0.00019713,2]
[378108133,1754734232824,-305.87,0.00019713,2]
[378108135,1754734232835,-302.26,0.00019713,2]
[378108137,1754734232846,-301.77,0.00019713,2]
[378108140,1754734232858,-305.29,0.00019713,2]
[378108142,1754734232869,-300.8,0.00019713,2]
[378108144,1754734232881,-4835.02578598,0.00019757,2]
[378108146,1754734232892,-1500.0,0.0001978,2]
[378108148,1754734232904,-5013.92174006,0.00019812,2]
[378108151,1754734232915,-160.0,0.0001986,2]
[378108153,1754734232928,-500.0,0.0001986,2]
[378108155,1754734232939,-500.0,0.0001986,2]
[378108157,1754734232951,-500.0,0.0001986,2]
[378108159,1754734232962,-500.0,0.0001986,2]
[378108162,1754734232973,-586.23063975,0.0001986,2]
[378108164,1754734232985,-305.39,0.00019862,2]
[378108166,1754734232996,-68.51458036,0.00019867,2]
[378108171,1754734233025,-5130.92226408,0.00019867,2]
[378108173,1754734233036,-301.68,0.00019867,2]
[378108175,1754734233048,-151.0,0.0001987,2]
[378108177,1754734233060,-151.0,0.0001987,2]
[378108180,1754734233072,-151.0,0.0001987,2]
[378108182,1754734233083,-239.471666,0.0001987,2]
[378108185,1754734233095,-151.0,0.00019872,2]
[378108187,1754734233108,-151.0,0.00019872,2]
[378108188,1754734233120,-151.0,0.00019872,2]
[378108189,1754734233133,-151.0,0.00019872,2]
[378108190,1754734233144,-151.0,0.00019872,2]
[378108191,1754734233157,-151.0,0.00019872,2]
[378108192,1754734233169,-151.0,0.00019872,2]
[378108193,1754734233181,-151.0,0.00019872,2]
[378108194,1754734233192,-151.0,0.00019872,2]
[378108195,1754734233205,-384.805015,0.00019872,2]
[378108196,1754734233215,-384.805015,0.00019872,2]
[378108197,1754734233227,-151.0,0.00019872,2]
[378108198,1754734233239,-384.805015,0.00019872,2]
[378108199,1754734233250,-151.0,0.00019872,2]
[378108200,1754734233263,-384.805015,0.00019872,2]
[378108201,1754734233275,-151.0,0.00019872,2]
[378108202,1754734233286,-129.30009927,0.00019872,2]
[378108203,1754734233310,-888.0,0.00019766,3]
[378108204,1754734233322,-21.69990073,0.00019872,2]
[378108205,1754734233339,-151.0,0.00019872,2]
[378108206,1754734233360,-151.0,0.00019872,2]
[378108207,1754734233373,-151.0,0.00019872,2]
[378108208,1754734233385,-151.0,0.00019872,2]
[378108209,1754734233396,-151.0,0.0001988,2]
[378108210,1754734233412,-151.0,0.0001988,2]
[378108211,1754734233424,-384.805015,0.0001988,2]
[378108212,1754734233435,-67.09599917,0.0001988,2]
[378108213,1754734233514,-317.70901583,0.0001988,2]
[378108214,1754734233525,-151.0,0.0001988,2]
[378108215,1754734233536,-157.686277,0.0001988,2]
[378108216,1754734233548,-151.0,0.00019886,2]
[378108217,1754734233560,-151.0,0.00019886,2]
[378108218,1754734233571,-250.05690717,0.00019886,2]
[378108219,1754734233636,-134.74810783,0.00019886,2]
[378108220,1754734233648,-384.805015,0.00019886,2]
[378108221,1754734233661,-4801.11314213,0.00019922,2]
[378108222,1754734233673,-208.46,0.00020187,2]
[378108223,1754734233684,-3235.44673886,0.0002028,2]
[378108224,1754734233699,-5988.87099677,0.0002028,2]
[378108230,1754734238155,-2159.87722957,0.0002028,2]
[378108240,1754734238266,-340.18093317,0.0002028,2]
[378108241,1754734238277,-1338.20796462,0.0002028,2]
[378108242,1754734238314,-2436.47126591,0.0002028,2]
[378108243,1754734238326,-778.58817429,0.0002028,2]
[378108244,1754734238337,-3792.959,0.0002028,2]
[378108245,1754734238347,-3159.66830263,0.0002028,2]
[378108246,1754734238423,-472.054999,0.0002028,2]
[378108247,1754734238434,-3300.08183482,0.0002028,2]
[378108248,1754734238478,-332.44382773,0.0002028,2]
[378108249,1754734238638,-984.97231169,0.0002028,2]
[378108403,1754734240399,-368.54592925,0.0002028,2]
[378108420,1754734240557,-1888.098074,0.0002028,2]
[378108694,1754734243250,-842.14091999,0.00020279,3]
[378108696,1754734243261,-45.85908001,0.00020279,3]
[378108698,1754734243271,-11010.35241769,0.0002028,2]
[378108700,1754734243281,-1000.0,0.00020288,2]
[378108702,1754734243291,-250.0,0.00020366,2]
[378108704,1754734243300,-888.0,0.00020372,3]
[378108706,1754734243310,-151.0,0.00020393,2]
[378108708,1754734243319,-384.805015,0.00020395,2]
[378108710,1754734243328,-384.805015,0.00020395,2]
[378108712,1754734243338,-1130.22,0.000204,2]
[378108715,1754734243351,-1032.00020868,0.00020437,2]
[378108717,1754734243362,-499.80979132,0.00020437,2]
[378108719,1754734243371,-174.75,0.00020449,2]
[378108721,1754734243381,-446.58520868,0.00020467,2]
[378108723,1754734243392,-884.54479132,0.00020467,2]
[378108725,1754734243402,-90.77252868,0.00020501,2]
[378108729,1754734243432,-74.96747132,0.00020501,2]
[378108731,1754734243442,-151.0,0.00020509,2]
[378108733,1754734243451,-61.05793556,0.00020509,2]
[378108740,1754734243501,-89.94206444,0.00020509,2]
[378108742,1754734243511,-219.9238688,0.00020509,2]
[378109025,1754734246263,-518.0,0.00019591,2]
[378109027,1754734246273,-164.8811462,0.00020509,2]
[378109029,1754734246282,-384.805015,0.00020509,2]
[378109031,1754734246291,-384.805015,0.00020509,2]
[378109033,1754734246301,-384.805015,0.00020509,2]
[378109035,1754734246310,-300.46,0.00020509,2]
[378109037,1754734246319,-600.0,0.00020603,2]
[378109039,1754734246329,-600.0,0.00020603,2]
[378109041,1754734246338,-600.0,0.00020603,2]
[378109043,1754734246349,-600.0,0.00020603,2]
[378109045,1754734246359,-151.0,0.00020619,2]
[378109047,1754734246369,-384.805015,0.00020619,2]
[378109049,1754734246378,-384.805015,0.00020619,2]
[378109051,1754734246387,-356.62,0.00020661,2]
[378109053,1754734246397,-151.0,0.0002069,2]
[378109055,1754734246410,-1978.73,0.0002069,2]
[378109057,1754734246421,-170.0,0.0002069,7]
[378109059,1754734246430,-384.805015,0.00020707,2]
[378109061,1754734246439,-384.805015,0.00020707,2]
[378109063,1754734246448,-888.0,0.0002078,3]
[378109065,1754734246458,-250.0,0.00020824,2]
[378109067,1754734246468,-300.0,0.00020824,2]
[378109069,1754734246477,-300.0,0.00020824,2]
[378109071,1754734246487,-384.805015,0.00020902,2]
[378109073,1754734246498,-384.805022,0.00020902,2]
[378109075,1754734246507,-182.94,0.00020995,2]
[378109101,1754734246740,-4009.57,0.00021018,2]
[378109103,1754734246754,-248.71531821,0.00021071,2]
[378109106,1754734246764,-150.0,0.000212,2]
[378109108,1754734246774,-160.0,0.00021229,2]
[378109110,1754734246783,-4000.855,0.00021242,2]
[378109111,1754734246792,-167.53,0.00021437,2]
[378109114,1754734246802,-167.53,0.00021448,2]
[378109116,1754734246812,-167.53,0.00021459,2]
[378109118,1754734246822,-167.53,0.00021471,2]
[378109120,1754734246832,-167.53,0.00021482,2]
[378109122,1754734246841,-167.53,0.00021493,2]
[378109124,1754734246858,-167.53,0.00021505,2]
[378109126,1754734246872,-167.53,0.00021516,2]
[378109128,1754734246881,-167.53,0.00021527,2]
[378109130,1754734246891,-167.53,0.00021538,2]
[378109132,1754734246900,-167.53,0.0002155,2]
[378109134,1754734246909,-167.53,0.00021561,2]
[378109136,1754734246918,-1561.0,0.00021562,2]
[378109138,1754734246928,-167.53,0.00021572,2]
[378109140,1754734246937,-167.53,0.00021584,2]
[378109142,1754734246946,-167.53,0.00021595,2]
[378109144,1754734246955,-167.53,0.00021606,2]
[378109146,1754734246965,-167.53,0.00021617,2]
[378109148,1754734246974,-167.53,0.00021629,2]
[378109150,1754734246987,-167.53,0.0002164,2]
[378109152,1754734246996,-167.53,0.00021651,2]
[378109154,1754734247007,-2186.82,0.00021757,2]
[378109156,1754734247017,-3598.21,0.00021757,2]
[378109158,1754734247026,-1008.12,0.00021757,2]
[378109161,1754734247036,-919.80526656,0.00021757,2]
[378109163,1754734247052,-80.18473344,0.00021757,2]
[378109165,1754734247061,-150.99,0.00021757,2]
[378109167,1754734247071,-999.0,0.00021917,2]
[378109169,1754734247080,-1609.09306256,0.00021918,2]
[378109172,1754734247092,-3390.90693744,0.00021918,2]
[378109174,1754734247101,-666.0,0.00021918,3]
[378109176,1754734247111,-2729.72177,0.00022,2]
[378109178,1754734247120,-1776.0,0.00022006,3]
[378109180,1754734247129,-1651.0,0.00022132,2]
[378109182,1754734247139,-195.54278777,0.00022161,2]
[378109187,1754734247174,-518.0,0.00021968,5]
[378109189,1754734247184,-4.45721223,0.00022161,2]
[378109191,1754734247193,-3119.84278781,0.00022219,2]
[378109779,1754734343986,-301.95,0.00020509,2]
[378109780,1754734344007,-301.25,0.00020596,2]
[378109781,1754734344029,-304.1,0.00021026,2]
[378109782,1754734344051,-202.3621875,0.00022119,2]
[378109783,1754734344073,-160.0,0.00022205,2]
[378109784,1754734344094,-239.84119403,0.00022205,2]
[378109785,1754734344114,-2959.15721219,0.00022219,2]
[378109786,1754734344135,-4143.0,0.00022219,2]
[378109787,1754734344155,-1876.0,0.00022219,2]
[378109788,1754734344176,-191.96,0.00022275,2]
[378109789,1754734344196,-150.0,0.00022389,2]
[378109790,1754734344217,-23.37940628,0.00022389,2]
[378109791,1754734383009,-301.25,0.00020596,2]
[378109792,1754734383039,-281.0,0.000221,2]
[378109793,1754734383061,-126.62059372,0.00022389,2]
[378109794,1754734383082,-150.0,0.00022389,2]
[378109795,1754734383103,-150.0,0.00022389,2]
[378109796,1754734383124,-150.0,0.00022389,2]
[378109797,1754734383145,-150.0,0.00022389,2]
[378109798,1754734383166,-150.0,0.00022389,2]
[378109799,1754734383186,-150.0,0.00022389,2]
[378109800,1754734383207,-150.0,0.00022389,2]
[378109801,1754734383227,-150.0,0.00022389,2]
[378109802,1754734383248,-150.0,0.00022389,2]
[378109803,1754734383269,-150.0,0.00022389,2]
[378109804,1754734383291,-150.0,0.00022389,2]
[378109805,1754734383312,-150.00000001,0.00022389,2]
[378109806,1754734383333,-305.97,0.00022389,2]
[378109807,1754734383354,-356.62,0.00022392,2]
[378109808,1754734383376,-151.0,0.00022409,7]
[378109809,1754734383397,-211.66152043,0.0002253,2]
[378109810,1754734383417,-410.5473,0.00022591,15]
[378109811,1754734383440,-1768.33058584,0.00022612,3]
[378109812,1754734398174,-300.04,0.00020838,2]
[378109813,1754734398201,-7.66941416,0.00022612,3]
[378109814,1754734398226,-150.0,0.00022615,4]
[378109815,1754734398253,-1170.0,0.00022634,2]
[378109816,1754734398278,-892.0,0.00022634,2]
[378109817,1754734398304,-1000.0,0.00022824,2]
[378109818,1754734398329,-152.0,0.00022839,3]
[378109819,1754734398354,-150.0,0.00022841,4]
[378109820,1754734398379,-150.0,0.00022865,2]
[378109821,1754734398404,-356.82,0.000229,2]
[378109822,1754734398434,-196.35,0.00022914,2]
[378109823,1754734400961,305.77,0.00021325,2]
[378109824,1754734403714,622.35058584,0.00021917,2]
[378109844,1754734899961,461.27,0.00017565,2]
[378109851,1754735099247,197.49,0.00013699,2]
[378109865,1754735265935,3020.25300899,0.00013,2]
[378109866,1754735265956,2979.74699101,0.00013,2]